bitfinex/quotes_BTCUSD_20220218
["timestamp","ask_amount","ask_price","bid_price","bid_amount"]
[1645198392412,0.1,39938.0,39933.0,0.01682162]
[1645198392606,0.1,39938.0,39936.0,0.29816645]
[1645198392810,44.56695079,39940.0,39937.0,0.19203762]
[1645198393013,44.56695079,39940.0,39939.0,0.14623762]
[1645198393014,28.36035435,39940.0,39939.0,0.14623762]
[1645198393213,18.70801871,39940.0,39939.0,0.51623762]
[1645198393411,0.08035,39973.0,39940.0,0.6]
[1645198393610,0.1998,39978.0,39940.0,0.6]
[1645198393611,0.05,39969.0,39941.0,0.3]
[1645198393809,0.1,39978.0,39953.0,0.6]
[1645198394006,0.1,39978.0,39954.0,0.362569]
[1645198394238,0.55,39986.0,39967.0,0.23422348]
[1645198394239,0.05,39986.0,39967.0,0.23422348]
[1645198394440,0.01,39989.0,39968.0,0.3458]
[1645198394644,0.1998,40001.0,39969.0,1.15]
[1645198394837,0.1,39999.0,39970.0,0.36190259]
[1645198395044,4.65605399,40016.0,39984.0,0.0228]
[1645198395238,0.0901,40007.0,39994.0,0.19183731]
[1645198395443,0.05,40015.0,39998.0,0.07]
[1645198395637,0.05,40015.0,40002.0,0.03939064]
[1645198395638,0.30522129,40014.0,40002.0,0.03939064]
[1645198395837,0.1,40015.0,40006.0,0.03939064]
[1645198396039,0.1,40015.0,40003.0,0.3458]
[1645198396040,4.64108697,40016.0,40013.0,0.573]
[1645198396244,4.64108697,40016.0,40002.0,0.05]
[1645198396245,1.15,40013.0,39972.0,0.724936]
[1645198396446,1.15,40013.0,39974.0,0.5]
[1645198396447,0.55,39983.0,39974.0,0.5]
[1645198396643,0.3,39995.0,39994.0,0.7090621]
[1645198396843,0.3,39995.0,39967.0,0.2]
[1645198396844,0.27981244,39988.0,39970.0,0.1]
[1645198397039,0.27981244,39988.0,39957.0,0.19307]
[1645198397040,0.1,39985.0,39969.0,0.1]
[1645198397239,0.1,39985.0,39957.0,0.19307]
[1645198397240,0.26549537,39977.0,39957.0,0.19307]
[1645198397441,0.0458,39980.0,39962.0,0.1]
[1645198397642,0.0458,39980.0,39970.0,0.1]
[1645198397887,0.0458,39980.0,39970.0,0.26716192]
[1645198398086,0.39795085,39981.0,39970.0,0.26716192]
[1645198398389,0.29795085,39981.0,39978.0,0.1]
[1645198398592,0.20376959,39981.0,39980.0,0.07]
[1645198398888,0.3,40002.0,39987.0,0.0228]
[1645198398889,0.1,40002.0,39987.0,0.0228]
[1645198399091,0.1,40002.0,39993.0,0.1]
[1645198399289,0.3,40008.0,39997.0,0.07]
[1645198399290,0.1648,40008.0,39997.0,0.07]
[1645198399488,0.2998,40009.0,39996.0,0.05]
[1645198399489,0.25897209,40001.0,39996.0,0.05]
[1645198399686,0.25897209,40001.0,40000.0,0.07]
[1645198399886,0.1,40003.0,40000.0,0.07]
[1645198400088,0.1,40003.0,40002.0,0.07]
[1645198400391,0.0379,40003.0,40002.0,0.07]
[1645198400589,0.0379,40004.0,40002.0,0.07]
[1645198400791,0.0999,40015.0,39999.0,0.05]
[1645198400792,0.3999,40015.0,40001.0,0.0458]
[1645198400993,0.0999,40015.0,40012.0,0.29932369]
[1645198401188,0.015,40024.0,40013.0,0.0458]
[1645198401189,0.315,40024.0,40013.0,0.0458]
[1645198401397,0.02288,40019.0,40013.0,0.0458]
[1645198401657,0.01928,40019.0,40017.0,0.065]
[1645198401842,0.01928,40019.0,40018.0,0.1108]
[1645198402040,0.14064112,40025.0,40018.0,0.065]
[1645198402240,0.0999,40020.0,40018.0,0.0958]
[1645198402440,0.0999,40020.0,40019.0,0.065]
[1645198402841,0.0999,40020.0,40019.0,0.165]
[1645198403050,0.33934898,40025.0,40019.0,0.165]
[1645198403240,0.33934898,40025.0,40023.0,0.065]
[1645198403241,0.1,40025.0,40023.0,0.065]
[1645198403441,0.1,40025.0,40024.0,0.065]
[1645198403941,0.1,40025.0,40019.0,0.15]
[1645198404146,0.1,40025.0,40001.0,0.0012]
[1645198404147,0.1,40023.0,40001.0,0.0012]
[1645198404346,0.3,40024.0,39995.0,0.187467]
[1645198404347,0.1479,40019.0,40000.0,0.0458]
[1645198404543,0.08508,40024.0,39995.0,0.1]
[1645198404544,0.1,40006.0,39995.0,0.1458]
[1645198404743,0.1,40006.0,39999.0,0.065]
[1645198404942,0.1,40005.0,40003.0,0.35697059]
[1645198405145,0.1,40005.0,40004.0,0.065]
[1645198405380,0.05,40015.0,40004.0,0.065]
[1645198405381,0.1,40009.0,40004.0,0.065]
[1645198405588,0.1,40013.0,40008.0,0.065]
[1645198405784,0.1,40013.0,40012.0,0.065]
[1645198405988,0.21250948,40039.0,40012.0,0.065]
[1645198405989,0.1,40018.0,40012.0,0.065]
[1645198406188,0.3,40026.0,40016.0,0.065]
[1645198406488,0.3,40026.0,39997.0,0.01447578]
[1645198406489,1.165,40020.0,39997.0,0.01447578]
[1645198406687,1.483222,40014.0,39984.0,0.249945]
[1645198406887,2.19142175,39993.0,39986.0,0.0999]
[1645198407089,2.19142175,39993.0,39977.0,5.501]
[1645198407090,0.3479,39988.0,39977.0,5.501]
[1645198407287,0.01434125,39986.0,39977.0,5.501]
[1645198407486,0.1,39978.0,39977.0,5.501]
[1645198407686,0.1458,39978.0,39977.0,5.501]
[1645198407888,1.09717919,39978.0,39977.0,4.17025627]
[1645198408089,0.75179669,39978.0,39977.0,1.14112516]
[1645198408286,1.75179669,39978.0,39977.0,1.14112516]
[1645198408485,0.75179669,39978.0,39977.0,1.14112516]
[1645198408688,0.74385447,39978.0,39977.0,1.14112516]
[1645198408885,0.74385447,39978.0,39977.0,1.12732516]
[1645198409532,0.74385447,39978.0,39977.0,0.94547871]
[1645198409730,0.69546488,39977.0,39970.0,0.002]
[1645198409935,0.62744236,39972.0,39970.0,0.002]
[1645198410133,0.32534236,39972.0,39970.0,0.002]
[1645198410331,0.77324236,39972.0,39970.0,0.002]
[1645198410530,0.42534236,39972.0,39970.0,0.002]
[1645198410739,0.97194854,39972.0,39970.0,0.002]
[1645198410929,0.57324236,39972.0,39971.0,0.76739663]
[1645198411131,0.1458,39972.0,39971.0,0.76739663]
[1645198411529,0.1,39972.0,39971.0,0.81739663]
[1645198412435,0.1,39972.0,39971.0,0.88739663]
[1645198412633,6.286e-05,39973.0,39971.0,0.88739663]
[1645198412929,6.286e-05,39973.0,39972.0,0.13002252]
[1645198412930,2.86e-06,39973.0,39972.0,0.13002252]
[1645198413125,0.0999,39987.0,39972.0,0.13002252]
[1645198413126,0.0999,39987.0,39973.0,6e-05]
[1645198413428,0.0949,39987.0,39984.0,0.2021969]
[1645198413726,0.1,39993.0,39986.0,0.17]
[1645198413927,0.1,39993.0,39987.0,0.0458]
[1645198414232,0.1,39999.0,39992.0,0.1]
[1645198414538,1.1,39993.0,39971.0,0.50528666]
[1645198414727,0.1,39972.0,39944.0,0.00498]
[1645198414930,0.1,39972.0,39943.0,0.001]
[1645198414931,0.1,39960.0,39947.0,0.41394682]
[1645198415132,0.1,39960.0,39933.0,0.001454]
[1645198415133,0.01099656,39937.0,39933.0,0.001454]
[1645198415331,0.17042171,39937.0,39936.0,0.75119]
[1645198415525,0.17042171,39937.0,39929.0,0.000908]
[1645198415526,1.61469281,39937.0,39932.0,0.0002]
[1645198415826,1.61469281,39937.0,39929.0,0.000908]
[1645198415827,0.01029155,39932.0,39929.0,8e-06]
[1645198416032,1.15,39929.0,39916.0,5.2749907]
[1645198416226,0.1,39927.0,39917.0,0.0458]
[1645198416530,0.1,39927.0,39916.0,5.2649907]
[1645198416531,0.1,39917.0,39916.0,5.3651907]
[1645198416739,0.1,39917.0,39916.0,0.09566]
[1645198416939,0.5941711,39918.0,39916.0,0.08204]
[1645198417147,0.1,39917.0,39916.0,0.06296]
[1645198417338,1.15,39916.0,39904.0,1.0]
[1645198417538,1.15,39916.0,39909.0,0.0458]
[1645198417539,0.062696,39914.0,39909.0,0.0458]
[1645198417741,0.09888,39910.0,39909.0,0.0458]
[1645198418040,0.09888,39910.0,39900.0,0.0120346]
[1645198418041,0.8431511,39910.0,39903.0,8.76e-06]
[1645198418243,0.01228425,39909.0,39903.0,9.8e-07]
[1645198418439,0.01228425,39909.0,39901.0,0.09562566]
[1645198418440,0.05615666,39904.0,39901.0,0.09562566]
[1645198418644,0.04241052,39903.0,39902.0,0.0458]
[1645198418840,0.04241052,39903.0,39901.0,0.09562566]
[1645198419039,0.30107,39902.0,39901.0,0.09562566]
[1645198419241,0.01634401,39902.0,39901.0,0.09562566]
[1645198419439,0.11634401,39902.0,39901.0,0.09562566]
[1645198419839,0.11634401,39902.0,39901.0,0.14142566]
[1645198420038,0.07553144,39902.0,39901.0,0.14142566]
[1645198420238,0.0945,39904.0,39901.0,0.14142566]
[1645198420488,0.0945,39904.0,39901.0,0.09562566]
[1645198420489,0.1,39902.0,39901.0,0.09562566]
[1645198421192,0.1345,39904.0,39902.0,1.18054914]
[1645198421393,0.18811866,39917.0,39902.0,1.18054914]
[1645198421394,0.00396,39918.0,39903.0,1.32017]
[1645198421592,0.3,39923.0,39914.0,0.21699188]
[1645198421887,0.2,39934.0,39914.0,0.26699188]
[1645198421888,0.3,39926.0,39914.0,0.26699188]
[1645198422088,0.1,39915.0,39914.0,0.26699188]
[1645198422287,0.1,39915.0,39914.0,0.12]
[1645198422491,0.3199,39928.0,39917.0,7.5e-05]
[1645198422492,0.0199,39928.0,39917.0,7.5e-05]
[1645198422690,0.0199,39928.0,39921.0,0.0638413]
[1645198422890,0.3,39936.0,39931.0,0.08954087]
[1645198423189,0.1442711,39934.0,39931.0,0.13954087]
[1645198423390,0.1442711,39934.0,39933.0,0.07]
[1645198423794,0.4442711,39934.0,39933.0,0.0421]
[1645198424241,0.4442711,39934.0,39932.0,4.97e-06]
[1645198424242,1.475322,39933.0,39932.0,4.97e-06]
[1645198424439,1.475322,39933.0,39926.0,1.472e-05]
[1645198424440,0.3442711,39927.0,39926.0,1.472e-05]
[1645198424641,0.6804298,39927.0,39926.0,1.472e-05]
[1645198425038,0.6804298,39927.0,39904.0,0.04308196]
[1645198425039,0.8803298,39927.0,39904.0,0.04308196]
[1645198425239,0.2,39917.0,39904.0,0.04308196]
[1645198425438,0.3442711,39917.0,39911.0,0.48012512]
[1645198425639,0.3,39920.0,39911.0,0.19533709]
[1645198425839,0.1,39915.0,39911.0,0.19533709]
[1645198426444,0.3442711,39925.0,39911.0,0.19533709]
[1645198426445,0.3442711,39925.0,39914.0,0.07]
[1645198426640,0.3442711,39925.0,39924.0,0.26051401]
[1645198426641,0.0301511,39925.0,39924.0,0.26051401]
[1645198427242,0.1301511,39925.0,39924.0,0.26051401]
[1645198427642,0.1301511,39925.0,39923.0,7.109e-05]
[1645198427643,0.1361587,39925.0,39923.0,7.109e-05]
[1645198427893,0.1361587,39925.0,39923.0,1.09e-06]
[1645198427894,0.5299808,39924.0,39923.0,1.09e-06]
[1645198428092,0.5299808,39924.0,39915.0,0.00106657]
[1645198428093,1.4299808,39924.0,39916.0,3.75e-06]
[1645198428292,1.4299808,39924.0,39915.0,0.00106657]
[1645198428293,0.23104696,39916.0,39915.0,0.00024836]
[1645198428592,0.23104696,39916.0,39893.0,0.29616736]
[1645198428593,0.0299808,39904.0,39893.0,0.29616736]
[1645198428793,0.0299808,39904.0,39885.0,0.33603137]
[1645198428794,1.15,39914.0,39892.0,0.27458776]
[1645198428795,0.0661395,39894.0,39892.0,0.27458776]
[1645198429001,0.02957665,39893.0,39881.0,0.00146648]
[1645198429299,0.1,39893.0,39892.0,0.22892095]
[1645198429494,0.1,39893.0,39892.0,0.34421949]
[1645198429691,0.1,39894.0,39892.0,0.62883262]
[1645198429891,0.1,39894.0,39892.0,0.14236]
[1645198430092,0.1,39894.0,39892.0,0.0421]
[1645198430295,0.3,39900.0,39892.0,0.0421]
[1645198430296,0.1,39893.0,39892.0,0.0421]
[1645198430693,0.1,39893.0,39892.0,0.07217858]
[1645198430895,0.1998,39898.0,39892.0,0.25246373]
[1645198431099,0.05,39904.0,39892.0,0.25246373]
[1645198431100,0.05,39904.0,39892.0,0.60099032]
[1645198431294,0.01277668,39914.0,39895.0,0.0638413]
[1645198431496,0.36277668,39914.0,39912.0,0.25076926]
[1645198431733,0.36277668,39914.0,39896.0,0.0421]
[1645198431932,0.02957665,39912.0,39902.0,0.19061449]
[1645198432135,0.35,39914.0,39903.0,0.0421]
[1645198432334,0.3,39914.0,39903.0,0.0421]
[1645198432532,0.1,39915.0,39903.0,0.04216757]
[1645198432737,0.3,39917.0,39904.0,0.25920454]
[1645198432738,8.577e-05,39917.0,39904.0,0.25920454]
[1645198432933,8.577e-05,39917.0,39905.0,1.1921]
[1645198433135,8.577e-05,39917.0,39908.0,0.20003358]
[1645198433333,8.577e-05,39917.0,39909.0,0.0421]
[1645198433531,8.577e-05,39917.0,39909.0,0.0321]
[1645198433733,8.577e-05,39917.0,39910.0,0.21142513]
[1645198433933,8.578e-05,39917.0,39911.0,0.0421]
[1645198434238,8.578e-05,39917.0,39916.0,0.24695843]
[1645198434537,8.578e-05,39917.0,39916.0,0.28905843]
[1645198434734,8.578e-05,39917.0,39916.0,0.5242834]
[1645198435133,0.05,39923.0,39916.0,0.5242834]
[1645198435417,0.12766235,39931.0,39916.0,0.5242834]
[1645198435418,0.3,39922.0,39916.0,0.27732497]
[1645198435611,0.12766235,39931.0,39916.0,0.27732497]
[1645198435612,0.02957665,39921.0,39916.0,0.27732497]
[1645198435807,0.1,39918.0,39916.0,0.27732497]
[1645198436206,0.0361587,39921.0,39916.0,0.27732497]
[1645198436407,0.02957665,39921.0,39917.0,0.21891603]
[1645198436606,0.1,39923.0,39917.0,0.21891603]
[1645198436811,0.02957665,39919.0,39916.0,0.23522497]
[1645198437008,0.01500897,39925.0,39914.0,0.00300529]
[1645198437009,0.01500897,39925.0,39924.0,0.26280239]
[1645198437208,0.05116767,39925.0,39924.0,0.26280239]
[1645198437408,0.15116767,39925.0,39924.0,0.26280239]
[1645198437609,0.1,39925.0,39924.0,0.26280239]
[1645198438612,1.15,39923.0,39914.0,0.00300529]
[1645198438812,0.1,39925.0,39914.0,0.00300529]
[1645198438813,0.3,39922.0,39914.0,0.00300529]
[1645198439010,8.578e-05,39926.0,39914.0,0.00300529]
[1645198439011,0.11228814,39924.0,39914.0,0.00300529]
[1645198439246,0.1,39923.0,39914.0,0.00300529]
[1645198439445,0.1,39923.0,39915.0,0.30914966]
[1645198439641,0.01228814,39924.0,39923.0,0.24452144]
[1645198440244,0.1,39926.0,39923.0,0.24452144]
[1645198440441,0.1,39926.0,39924.0,0.30404689]
[1645198440641,0.02766235,39931.0,39925.0,1.15]
[1645198440847,0.17531593,39938.0,39925.0,1.15]
[1645198440848,0.0096,39946.0,39927.0,1.15]
[1645198441045,0.0096,39946.0,39923.0,0.24452144]
[1645198441046,0.1,39929.0,39923.0,0.24452144]
[1645198441446,0.26257309,39939.0,39924.0,0.0421]
[1645198441447,0.3,39928.0,39924.0,0.0421]
[1645198441643,0.01488975,39932.0,39914.0,0.00300529]
[1645198441644,0.1,39927.0,39914.0,0.00300529]
[1645198441842,0.01283516,39926.0,39914.0,0.00300529]
[1645198442044,0.0096,39931.0,39914.0,0.00300529]
[1645198442045,0.1,39925.0,39915.0,0.0421]
[1645198442246,0.0096,39931.0,39920.0,1.15]
[1645198442543,0.1,39933.0,39921.0,1.15]
[1645198442743,0.1,39933.0,39926.0,0.20961054]
[1645198442983,0.1,39933.0,39926.0,0.04869772]
[1645198442984,8.47e-05,39928.0,39926.0,0.04869772]
[1645198443583,8.47e-05,39928.0,39926.0,0.04209772]
[1645198443787,0.05,39942.0,39935.0,0.25180908]
[1645198443986,0.01446015,39944.0,39935.0,0.25180908]
[1645198443987,0.1,39936.0,39935.0,0.25180908]
[1645198444182,0.1,39936.0,39935.0,0.30827633]
[1645198444587,0.09417271,39936.0,39935.0,0.30827633]
[1645198444985,0.01,39949.0,39935.0,0.30827633]
[1645198445184,0.1,39936.0,39935.0,0.42956496]
[1645198445383,0.06614211,39936.0,39935.0,0.49896496]
[1645198445584,0.01224958,39948.0,39935.0,0.84234483]
[1645198445785,0.01224958,39948.0,39935.0,0.23767633]
[1645198445786,24.49458879,39936.0,39935.0,0.23767633]
[1645198445987,24.49458879,39936.0,39935.0,0.30767633]
[1645198446187,24.39458879,39936.0,39935.0,0.30767633]
[1645198446388,24.39458879,39936.0,39935.0,0.07]
[1645198447034,24.08046879,39936.0,39935.0,0.07]
[1645198447242,24.07546879,39936.0,39935.0,0.03005297]
[1645198447434,24.07546879,39936.0,39935.0,0.30323251]
[1645198447633,24.07546879,39936.0,39935.0,0.34533251]
[1645198448033,22.83745134,39936.0,39935.0,0.62907471]
[1645198448235,22.83745134,39936.0,39935.0,0.848365]
[1645198448436,19.94832318,39936.0,39935.0,0.61513249]
[1645198448633,19.94832318,39936.0,39935.0,0.3958422]
[1645198448836,18.73222318,39936.0,39935.0,0.4958422]
[1645198449335,14.25394056,39936.0,39935.0,0.64496333]
[1645198449536,12.30987909,39936.0,39935.0,0.74496333]
[1645198449739,10.16486254,39936.0,39935.0,0.93340936]
[1645198449935,10.01486254,39936.0,39935.0,0.32126281]
[1645198450144,10.01486254,39936.0,39935.0,0.07214168]
[1645198450789,10.01486254,39936.0,39935.0,0.0421]
[1645198450990,7.16056254,39936.0,39935.0,0.204714]
[1645198451292,7.16056254,39936.0,39935.0,0.232614]
[1645198451491,3.44165483,39936.0,39935.0,0.232614]
[1645198451689,3.43318483,39936.0,39935.0,0.274714]
[1645198451891,3.40987483,39936.0,39935.0,0.23474779]
[1645198452092,3.40987483,39936.0,39935.0,0.4513774]
[1645198452292,3.03430383,39936.0,39935.0,0.8013774]
[1645198452489,3.03430383,39936.0,39935.0,0.45974779]
[1645198452689,3.03430383,39936.0,39935.0,0.45949751]
[1645198452890,2.46619977,39936.0,39935.0,0.45949751]
[1645198453090,2.46619977,39936.0,39935.0,0.55949751]
[1645198453290,0.06,39949.0,39935.0,0.55949751]
[1645198453492,0.06,39949.0,39948.0,0.1]
[1645198453493,0.01,39949.0,39948.0,0.1]
[1645198453691,0.01,39949.0,39948.0,0.21204]
[1645198453891,0.35,39959.0,39949.0,1.0]
[1645198453892,0.295,39958.0,39949.0,1.0]
[1645198454141,0.005,39969.0,39953.0,0.06994]
[1645198454341,0.005,39969.0,39952.0,0.1]
[1645198454342,0.005,39969.0,39954.0,0.0421]
[1645198454539,0.005,39969.0,39955.0,0.0421]
[1645198454740,0.005,39969.0,39960.0,0.062569]
[1645198454944,0.005,39969.0,39958.0,0.062569]
[1645198454945,0.005,39969.0,39964.0,0.06994]
[1645198455242,0.005,39969.0,39968.0,0.06994]
[1645198455855,0.005,39969.0,39968.0,0.11204]
[1645198456041,0.1856,39992.0,39968.0,0.11204]
[1645198456042,0.0094,39990.0,39969.0,0.8]
[1645198456243,0.1,39984.0,39970.0,0.0421]
[1645198456441,0.1,39984.0,39970.0,0.3221]
[1645198456642,0.56501126,39983.0,39970.0,0.0221]
[1645198456842,0.75950818,39983.0,39970.0,0.1721]
[1645198457040,0.01232714,39982.0,39970.0,0.1721]
[1645198457242,0.1,39984.0,39975.0,0.125091]
[1645198457448,0.1106879,39990.0,39976.0,0.0421]
[1645198457643,0.01010151,39989.0,39976.0,0.0421]
[1645198457892,0.05,39992.0,39976.0,0.0421]
[1645198457893,0.01011273,39988.0,39976.0,0.0421]
[1645198458085,0.21631872,39987.0,39976.0,0.0421]
[1645198458284,0.05,39992.0,39976.0,0.0421]
[1645198458285,0.50251103,39981.0,39976.0,0.0421]
[1645198458885,0.1,39978.0,39976.0,0.0421]
[1645198459185,0.08994,39983.0,39976.0,0.0421]
[1645198459488,0.04907832,39992.0,39977.0,0.55]
[1645198459684,0.04907832,39992.0,39971.0,0.31023516]
[1645198459685,8.167e-05,39980.0,39978.0,0.0421]
[1645198459885,8.167e-05,39980.0,39972.0,0.31023516]
[1645198460092,8.167e-05,39980.0,39978.0,0.062551]
[1645198460293,8.167e-05,39980.0,39979.0,0.06994]
[1645198460491,0.04907832,39992.0,39979.0,0.06994]
[1645198460492,0.04907832,39992.0,39982.0,0.187578]
[1645198460790,0.1,39997.0,39986.0,0.06994]
[1645198460989,0.30819564,40005.0,39990.0,0.06994]
[1645198461186,0.30819564,40005.0,39987.0,0.0421]
[1645198461187,0.23262804,40004.0,39995.0,0.062522]
[1645198461385,0.40819564,40005.0,39995.0,0.062522]
[1645198461646,0.1,40005.0,39995.0,0.062522]
[1645198461840,0.0092,40008.0,39995.0,0.062522]
[1645198462240,0.0092,40008.0,39994.0,0.50233516]
[1645198462241,0.20826734,40007.0,39994.0,0.46485716]
[1645198462440,0.3081439,40006.0,39994.0,0.0421]
[1645198462647,0.1,40005.0,39994.0,0.0421]
[1645198462846,0.4081439,40006.0,39981.0,0.062543]
[1645198462847,0.1,40003.0,39981.0,0.062543]
[1645198463041,0.07870737,39984.0,39983.0,0.03909646]
[1645198463242,0.07870737,39984.0,39983.0,0.10903646]
[1645198463442,0.07870737,39984.0,39983.0,0.12423509]
[1645198463443,0.0645176,39984.0,39983.0,0.12423509]
[1645198463644,0.0645176,39984.0,39983.0,0.19417509]
[1645198464244,0.0645176,39984.0,39983.0,0.12423509]
[1645198464949,0.0645176,39984.0,39983.0,0.08513863]
[1645198464950,0.3108996,39984.0,39983.0,0.08513863]
[1645198465250,0.3108996,39984.0,39983.0,1.863e-05]
[1645198465251,0.1545176,39984.0,39983.0,1.863e-05]
[1645198465501,0.1545176,39984.0,39967.0,0.062]
[1645198465699,0.1545176,39984.0,39967.0,0.0199]
[1645198465700,0.3081439,39983.0,39967.0,0.0199]
[1645198465902,0.1,39982.0,39967.0,0.0199]
[1645198466105,0.1,39982.0,39976.0,0.06994]
[1645198466302,0.1,39982.0,39980.0,0.06994]
[1645198466500,0.0545176,39984.0,39981.0,0.12670745]
[1645198466699,0.0545176,39984.0,39981.0,0.05676745]
[1645198467101,0.0545176,39984.0,39973.0,0.3081439]
[1645198467102,0.0545176,39984.0,39983.0,0.06994]
[1645198467303,0.0545176,39984.0,39983.0,0.11204]
[1645198467504,0.0545176,39984.0,39983.0,0.09886745]
[1645198467700,0.0545176,39984.0,39983.0,0.21380745]
[1645198468300,0.05,39997.0,39983.0,0.27633845]
[1645198468501,0.1,40003.0,39986.0,0.062524]
[1645198468701,0.1,40003.0,39984.0,0.08514399]
[1645198468702,0.1,40003.0,39987.0,0.3502439]
[1645198468904,0.1,40007.0,39988.0,0.0421]
[1645198469142,0.05,40008.0,39991.0,0.1]
[1645198469342,0.05,40008.0,39990.0,0.35]
[1645198469343,0.05,40008.0,39998.0,0.062508]
[1645198469541,0.01377554,40019.0,39999.0,0.18974899]
[1645198469542,0.1,40014.0,39999.0,0.18974899]
[1645198469739,0.1,40014.0,40003.0,0.06494]
[1645198469740,0.35361347,40012.0,40003.0,0.06494]
[1645198469939,0.35361347,40012.0,40004.0,0.0421]
[1645198470141,0.35361347,40012.0,39999.0,0.34764899]
[1645198470143,0.35361347,40012.0,40005.0,0.12724399]
[1645198470339,0.35361347,40012.0,40005.0,0.13514399]
[1645198470544,0.11,40009.0,40005.0,0.05]
[1645198470741,0.11,40009.0,40005.0,0.062509]
[1645198470941,0.11,40009.0,40006.0,0.0421]
[1645198471141,0.11,40009.0,40007.0,0.0851053]
[1645198471341,0.01008197,40009.0,40008.0,0.10704]
[1645198471941,0.01008197,40009.0,40005.0,0.062509]
[1645198472144,0.01008197,40009.0,39998.0,0.125026]
[1645198472145,0.11008197,40009.0,39998.0,0.125026]
[1645198472342,0.1,40006.0,39993.0,0.0031]
[1645198472544,0.1,40006.0,39994.0,0.09884425]
[1645198472745,0.35322396,40000.0,39994.0,0.09884425]
[1645198472993,0.58427604,40000.0,39998.0,0.07]
[1645198473194,0.58427604,40000.0,39990.0,0.187541]
[1645198473195,0.35322396,40000.0,39999.0,0.07]
[1645198473394,0.1,40003.0,39999.0,0.07]
[1645198473591,7.296e-05,40002.0,39993.0,0.062521]
[1645198473789,7.296e-05,40002.0,40000.0,0.05674318]
[1645198474195,0.11,40009.0,40002.0,0.00014592]
[1645198474393,0.01,40009.0,40006.0,0.07]
[1645198474594,0.01,40009.0,40008.0,0.07]
[1645198475093,0.01,40009.0,40004.0,0.0421]
[1645198475393,0.11,40009.0,40002.0,0.00014592]
[1645198475592,0.1,40005.0,40002.0,0.00014592]
[1645198475795,0.1897193,40004.0,40002.0,0.00014592]
[1645198475992,0.2897193,40004.0,40002.0,0.00014592]
[1645198476191,0.1,40003.0,40002.0,0.00014592]
[1645198476391,0.1,40003.0,40002.0,0.0068508]
[1645198476635,0.095,40004.0,40002.0,0.0068508]
[1645198476836,0.3,40014.0,40003.0,0.08511521]
[1645198477035,0.05,40023.0,40004.0,0.05]
[1645198477235,7.494e-05,40005.0,40004.0,0.05]
[1645198477437,7.494e-05,40005.0,40004.0,0.05670488]
[1645198477640,7.494e-05,40005.0,40002.0,0.00014592]
[1645198478036,0.10007494,40005.0,40002.0,0.00014592]
[1645198478637,0.1,40005.0,40002.0,0.00014592]
[1645198479239,0.1,40010.0,40006.0,0.01418465]
[1645198479437,0.0091,40018.0,40006.0,0.01418465]
[1645198479438,0.1,40012.0,40006.0,0.01418465]
[1645198479836,0.1,40012.0,40007.0,0.0851091]
[1645198480236,0.1,40012.0,40011.0,0.00670488]
[1645198480492,0.0091,40018.0,40011.0,0.00670488]
[1645198480493,0.1,40013.0,40011.0,0.00670488]
[1645198480691,0.1,40013.0,40012.0,0.00670488]
[1645198480891,0.1,40013.0,40012.0,0.09181398]
[1645198481194,0.1,40013.0,40012.0,0.14181398]
[1645198481394,0.05,40023.0,40012.0,0.14181398]
[1645198481395,0.25733382,40020.0,40012.0,0.14181398]
[1645198481592,0.25733382,40020.0,40012.0,0.1351091]
[1645198481790,0.25733382,40020.0,40013.0,0.0851091]
[1645198482193,0.45282786,40019.0,40013.0,1.91e-05]
[1645198482392,0.45282786,40019.0,40006.0,0.01418465]
[1645198482393,0.1,40014.0,40006.0,0.01418465]
[1645198482593,0.23390025,40011.0,40006.0,0.01418465]
[1645198482794,0.1,40008.0,39998.0,0.40418787]
[1645198482995,0.85,40007.0,39998.0,0.10701573]
[1645198483193,0.85,40007.0,40002.0,0.00670488]
[1645198483393,0.85,40007.0,40006.0,0.00670488]
[1645198483595,0.85,40007.0,40006.0,0.00092583]
[1645198483798,0.85,40007.0,40003.0,0.11924881]
[1645198483995,0.85,40007.0,40003.0,0.05673481]
[1645198483996,2.08705427,40006.0,40003.0,0.05673481]
[1645198484245,2.08705427,40006.0,40004.0,0.05673481]
[1645198484748,0.1,40008.0,40000.0,0.062517]
[1645198484945,0.1,40008.0,40004.0,0.00092583]
[1645198485144,0.1,40008.0,40007.0,0.00092583]
[1645198485548,8.649e-05,40009.0,40007.0,0.34019797]
[1645198485745,8.649e-05,40009.0,40008.0,0.14853025]
[1645198485945,8.649e-05,40009.0,40008.0,0.12812925]
[1645198486147,8.649e-05,40009.0,40008.0,0.17812925]
[1645198486351,0.1,40014.0,40008.0,0.17812925]
[1645198486546,0.1,40020.0,40009.0,0.1]
[1645198486749,0.1,40020.0,40010.0,0.08510342]
[1645198486945,0.22282092,40026.0,40010.0,0.08510342]
[1645198486946,0.31100547,40014.0,40010.0,0.08510342]
[1645198487148,0.12501826,40026.0,40010.0,0.13510342]
[1645198487149,8.178e-05,40011.0,40010.0,0.13510342]
[1645198487347,8.178e-05,40011.0,40010.0,0.13602925]
[1645198487992,8.178e-05,40011.0,40008.0,0.25]
[1645198487993,0.14551942,40009.0,40008.0,0.25]
[1645198488190,0.14551942,40009.0,40008.0,0.37]
[1645198488591,0.24551942,40009.0,40008.0,0.37]
[1645198488895,0.14551942,40009.0,40008.0,0.37]
[1645198489290,0.14551942,40009.0,40008.0,0.42673099]
[1645198489892,0.13133632,40009.0,40008.0,0.42673099]
[1645198490696,0.13133632,40009.0,40008.0,0.81883099]
[1645198490894,7.408e-05,40011.0,40009.0,0.9]
[1645198491096,0.80657563,40032.0,40018.0,0.15]
[1645198491099,0.3,40023.0,40018.0,0.15]
[1645198491295,0.32720074,40028.0,40020.0,0.1]
[1645198491648,0.62720074,40028.0,40018.0,0.05]
[1645198491834,0.62720074,40028.0,40016.0,0.0421]
[1645198491835,0.72720074,40028.0,40016.0,0.0421]
[1645198492038,0.1,40023.0,40013.0,0.0092]